Cogmind - Beta 17 @@@ ROGUE MODE // 2026.07.09 @ 17:35:57 Player: Conwew Result: Destroyed by P-70 Sage with High-powered Shock Rifle Performance ------------- Evolutions (4) 2000 Regions Visited (6) 1200 Robots Destroyed (25) 125 Value Destroyed (794) 794 Prototype IDs (1) 20 Alien Tech Used (0) 0 Bonus (949) 949 TOTAL SCORE: 5088 Bonus ------- Follower Combat Kills 149 Registered with UFD 300 Met Optimus in HQ 500 Cogmind --------- Core Integrity 0/850 Matter 300/300 Energy 95/100 System Corruption 1% Temperature Cool (0) Movement Walking (120) Location -6/Factory Parts ------- > --- POWER (2) -------- (None) > --- PROPULSION (4) --- Armored Leg > --- UTILITY (7) ------ Advanced Melee Analysis Suite > --- WEAPON (2) ------- Companion Sword > --- INVENTORY (5) ---- Power Amplifier Flak Gun Chainsword Large Botcube Peak State ------------ > --- POWER ------------ Light Nuclear Core > --- PROPULSION ------- Carbon-fiber Leg Flexi-carbon Leg > --- UTILITY ---------- Scrap Suit Signal Interpreter Melee Analysis Suite Improved Melee Analysis Suite Improved Light Armor Plating Improved Hacking Suite > --- WEAPON ----------- Companion Sword > --- INVENTORY -------- Power Amplifier Flak Gun Large Botcube [Rating: 44] Favorites ----------- Power Light Nuclear Core Engine Reinforced Ion Engine Power Core Light Nuclear Core Propulsion Aluminum Leg Leg Aluminum Leg Utility Signal Interpreter Device Scrap Suit Processor Signal Interpreter Hackware Improved Hacking Suite Protection Improved Light Armor Plating Weapon Companion Sword Energy Gun Small Laser Ballistic Gun High-powered Shotgun Launcher Rocket Launcher Slashing Weapon Companion Sword Build | -11 -10 -10 -10 -8 -8 -6 ------- Run | Yrd Mat Min Sub Rec Scr Fac Slots Evolved 8 | . . . . . . 8 Power 1 | . . . . . . 1 Propulsion 2 | . . . . . . 2 Utility 5 | . . . . . . 5 Weapon . | . . . . . . . Parts Attached 25 | 5 2 . 6 1 5 6 Power 3 | 1 1 . 1 . . . Engine 2 | 1 1 . . . . . Core 1 | . . . 1 . . . Reactor . | . . . . . . . Propulsion 6 | 2 . . 1 . 2 1 Treads . | . . . . . . . Leg 6 | 2 . . 1 . 2 1 Wheel . | . . . . . . . Hover . | . . . . . . . Flight . | . . . . . . . Utility 8 | . 1 . . 1 1 5 Device 1 | . . . . . . 1 Storage . | . . . . . . . Processor 4 | . 1 . . . . 3 Hackware 1 | . . . . . . 1 Protection 2 | . . . . 1 1 . Artifact . | . . . . . . . Weapon 8 | 2 . . 4 . 2 . Energy Gun 1 | . . . 1 . . . Energy Cannon . | . . . . . . . Ballistic Gun 4 | 2 . . 1 . 1 . Ballistic Cannon . | . . . . . . . Launcher 2 | . . . 2 . . . Special Weapon . | . . . . . . . Impact Weapon . | . . . . . . . Slashing Weapon 1 | . . . . . 1 . Piercing Weapon . | . . . . . . . Special Melee Weapon . | . . . . . . . Unidentified Prototypes 1 | . . . . . 1 . Parts Lost 8 | . . . 2 . . 6 Power 2 | . . . 1 . . 1 Propulsion 1 | . . . . . . 1 Utility 4 | . . . . . . 4 Weapon 1 | . . . 1 . . . Highest Loss Streak 5 | . . . 2 . . 5 To Critical Strikes 1 | . . . 1 . . . Average Backups 3 | . 2 5 4 4 3 1 Power . | . . 1 . . . . Propulsion . | . . 1 . . . . Utility 1 | . . . . . 2 1 Weapon 1 | . 1 3 2 3 . . Tool/Special . | . . . . . . . Unused Backups 44 | . 3 1 . . 21 19 Power 6 | . 1 1 . . 2 2 Propulsion 8 | . . . . . 4 4 Utility 17 | . . . . . 9 8 Weapon 12 | . 2 . . . 5 5 Tool/Special 1 | . . . . . 1 . Average Slot Usage (%) 89 | . 83 85 84 97 94 53 Engine 3 | . 14 14 12 . . . Core 9 | . . . . 14 14 2 Leg 26 | . 28 28 28 28 28 10 Processor 14 | . 12 14 14 14 14 16 Protection 9 | . . . . 11 14 4 Energy Gun 3 | . . . 1 14 3 . Ballistic Gun 14 | . 28 28 25 14 9 . Slashing Weapon 6 | . . . . . 10 6 Peak Build Rating 44 | 5 7 7 9 12 27 44 Average Rating 17 | 3 6 7 7 10 22 35 On Entrance 9 | . 5 7 7 9 12 23 Avg Prop Armor Cover (%) . | . . . . . . . Naked Turns . | . . . . . . . Heaviest Build 18 | 8 13 13 18 15 15 16 Greatest Support 35 | 20 20 20 20 20 35 35 Greatest Overweight (x) 1 | 1 . . . . . 1 Average Overweight (x) . | . . . . . . . Largest Inventory Capacity 5 | 5 5 5 5 5 5 5 Average Capacity 5 | 5 5 5 5 5 5 5 Most Carried 5 | . 5 5 5 5 5 5 Average Carried 3 | . 2 4 4 4 3 2 Final Capacity 5 | 5 5 5 5 5 5 5 Final Carried 5 | . 5 5 3 5 5 5 Scrap Suit Usage (%) 1 | . . . . . . 26 Class Distribution -------------------- 89% | Mutant 10% | Scavenger-Mutant Dominant Class ---------------- Mutant | -10/Materials Mutant | -10/Mines Mutant | -10/Subcaves Scavenger-Mutant | -8/Recycling Mutant | -8/Scraptown Mutant | -6/Factory Resources | -11 -10 -10 -10 -8 -8 -6 ----------- Run | Yrd Mat Min Sub Rec Scr Fac Matter Collected 763 | 212 130 20 166 130 40 65 Remotely . | . . . . . . . Salvage Created 733 | . 331 68 175 38 . 121 Parts 45 | . 16 4 17 1 . 7 Haulers Intercepted 1 | . 1 . . . . . Recyclers Shooed . | . . . . . . . Parts Field Recycled . | . . . . . . . Retrieved Matter . | . . . . . . . Parts Self-Destructed 11 | . . . 11 . . . Prevented . | . . . . . . . Parts Restored . | . . . . . . . Kills | -11 -10 -10 -10 -8 -8 -6 ------- Run | Yrd Mat Min Sub Rec Scr Fac Combat Hostiles Destroyed 21 | . 6 2 7 1 . 5 Melee 5 | . . . . . . 5 Guns 12 | . 6 2 3 1 . . AOE 4 | . . . 4 . . . Classes Destroyed 8 | . 3 1 3 . . 1 Hauler 1 | . 1 . . . . . Turret 2 | . . . 2 . . . Watcher 1 | . 1 . . . . . Swarmer 7 | . . 1 3 . . 3 Cutter 2 | . . . . . . 2 Grunt 7 | . 6 1 . . . . Sentry 2 | . . . 1 1 . . Subdweller 3 | . . . 3 . . . Best Kill Streak 6 | . 2 1 6 1 . 2 Combat Bots Only 3 | . 2 1 3 1 . 2 Max Kills in Single Turn 3 | . 1 1 3 1 . 1 Gunslinging . | . . . . . . . Exploded 3 | . . . 3 . . . Melee 1 | . . . . . . 1 Uniques/NPCs Destroyed . | . . . . . . . Combat | -11 -10 -10 -10 -8 -8 -6 -------- Run | Yrd Mat Min Sub Rec Scr Fac Hostile Shots Fired 253 | . 5 6 71 14 . 157 Missed 91 | . 3 4 27 4 . 53 Hits 162 | . 2 2 44 10 . 104 Melee 14 | . . . . . . 14 Projectile 148 | . 2 2 44 10 . 90 AOE 1 | . . . . . . 1 Critical Strikes 12 | . . . 2 . . 10 Damage Taken 2747 | . 24 20 647 146 . 1910 Core 1059 | . 12 11 158 14 . 864 Absorbed by Shields . | . . . . . . . Regen/Repaired (Parts) 307 | . . . . . 307 . Core Remaining (%) 61 | 100 . . . . 22 . Volleys Fired 58 | . 18 5 28 7 . . Largest 2 | . 2 2 2 2 . . Hottest 70 | . 40 40 66 70 . . Shots Fired 116 | . 36 10 56 14 . . Gun 104 | . 36 10 44 14 . . Cannon . | . . . . . . . Launcher 12 | . . . 12 . . . Special . | . . . . . . . Kinetic 92 | . 36 10 39 7 . . Thermal 12 | . . . 5 7 . . Explosive 12 | . . . 12 . . . Electromagnetic . | . . . . . . . Robot Hit Streak 13 | . 13 6 11 9 . . Robot Miss Streak 2 | . 2 1 2 1 . . Penetration Max . | . . . . . . . Secondary Targets . | . . . . . . . Shots Hit Robots 98 | . 26 7 37 12 . 16 Core Hits 47 | . 13 3 23 3 . 5 Critical Kills 1 | . 1 . . . . . Critical Parts Destroyed . | . . . . . . . Critical Strikes 3 | . 1 . . . . 2 Destroy 1 | . 1 . . . . . Melee Attacks 28 | . . . . . . 28 Impact . | . . . . . . . Slashing 28 | . . . . . . 28 Piercing . | . . . . . . . Sneak Attacks 1 | . . . . . . 1 Combat Hostiles . | . . . . . . . Follow-up Attacks . | . . . . . . . Damage Inflicted 2059 | . 274 73 781 216 . 715 Guns 801 | . 274 73 241 213 . . Cannons . | . . . . . . . Explosions 540 | . . . 540 . . . Melee 715 | . . . . . . 715 Ramming 3 | . . . . 3 . . Kinetic 692 | . 274 73 198 147 . . Thermal 109 | . . . 43 66 . . Explosive 540 | . . . 540 . . . Electromagnetic . | . . . . . . . Impact . | . . . . . . . Slashing 715 | . . . . . . 715 Piercing . | . . . . . . . Highest Corruption 1 | . . . . . . 1 Average Corruption 1 | . . . . . . 1 Corruption Purged . | . . . . . . . Corruption Blocked . | . . . . . . . Overload Shots . | . . . . . . . Overflow Damage 95 | . . . 15 . . 80 Projectiles . | . . . . . . . Explosions 15 | . . . 15 . . . Melee 80 | . . . . . . 80 Knockbacks . | . . . . . . . Impact . | . . . . . . . Kinetic . | . . . . . . . Secondary . | . . . . . . . Self-Inflicted Damage 37 | . . . 37 . . . Shots 2 | . . . 2 . . . Rammed . | . . . . . . . Targets Rammed 1 | . . . . 1 . . Kicked 1 | . . . . 1 . . Crushed . | . . . . . . . Highest Temperature 237 | . 8 14 4 237 . . Average Temperature 78 | . 6 7 4 124 . . Received Heat Transfer 240 | . 12 6 150 36 . 36 Siege Activations . | . . . . . . . Martial Activations . | . . . . . . . Shielding Activations . | . . . . . . . Robots Disrupted . | . . . . . . . Combat Hostiles . | . . . . . . . Robots Corrupted . | . . . . . . . Combat Hostiles . | . . . . . . . Parts Fried . | . . . . . . . Impact Corruptions . | . . . . . . . Robots Melted . | . . . . . . . Combat Hostiles . | . . . . . . . Parts Melted . | . . . . . . . Heat Transferred 250 | . . . 100 150 . . Parts Sabotaged . | . . . . . . . Parts Stolen . | . . . . . . . Parts Stripped . | . . . . . . . Power Chain Reactions . | . . . . . . . Alert | -11 -10 -10 -10 -8 -8 -6 ------- Run | Yrd Mat Min Sub Rec Scr Fac Maximum Alert Level 1 | . . . . . . 1 Low Security (%) 88 | 100 100 100 . 100 . 35 Level 1 11 | . . . . . . 64 Level 2 . | . . . . . . . Level 3 . | . . . . . . . Level 4 . | . . . . . . . Level 5 . | . . . . . . . High Security . | . . . . . . . Max Security . | . . . . . . . Peak Influence 339 | . 50 74 . 10 . 339 Initial 9 | . . 9 . . . . Average 40 | . 9 12 . . . 189 Influence Increases 990 | . 155 126 150 25 . 534 Destroy 0b10 Robot/C 540 | . 120 100 120 20 . 180 Destroy 0b10 Robot/NC 45 | . 10 . . . . 35 Destroy Leader 74 | . 24 20 . . . 30 Allied During Kill 20 | . . 6 . . . 14 Successful Hack 5 | . . . . 5 . . Disable Machine 150 | . . . . . . 150 Destroy Structure 51 | . 1 . . . . 50 Lose Combat Pursuer 105 | . . . 30 . . 75 Influence Decreases 672 | . 129 152 150 25 . 216 Entered New Map 17 | . . 17 . . . . Time Decay 575 | . 129 115 150 25 . 156 Lost Part 60 | . . . . . . 60 Lost Ally 20 | . . 20 . . . . Squads Dispatched 3 | . 1 . . . . 2 Investigation 1 | . 1 . . . . . Extermination . | . . . . . . . Reinforcement 1 | . . . . . . 1 Assault . | . . . . . . . Garrison 1 | . . . . . . 1 Intercept . | . . . . . . . Searches Triggered . | . . . . . . . Construction Impeded . | . . . . . . . Haulers Reinforced . | . . . . . . . Active Scanning Responses . | . . . . . . . Cargo Convoy Interrupts . | . . . . . . . Stealth | -11 -10 -10 -10 -8 -8 -6 --------- Run | Yrd Mat Min Sub Rec Scr Fac Distress Signals 1 | . 1 . . . . . Communications Jammed . | . . . . . . . Distress Signals . | . . . . . . . Times Spotted 48 | . 10 5 12 1 . 20 Peak Tracking Total 7 | . 3 3 6 1 . 7 Tactical Retreats 4 | . . . 1 . . 3 Traps | -11 -10 -10 -10 -8 -8 -6 ------- Run | Yrd Mat Min Sub Rec Scr Fac Traps Triggered 2 | . 1 . . . . 1 Indirectly . | . . . . . . . Trap Hack Attempts . | . . . . . . . Triggered . | . . . . . . . Disarmed . | . . . . . . . Reprogrammed . | . . . . . . . Reused . | . . . . . . . Traps Extracted . | . . . . . . . Installed . | . . . . . . . Triggered . | . . . . . . . Machines | -11 -10 -10 -10 -8 -8 -6 ---------- Run | Yrd Mat Min Sub Rec Scr Fac Machines Disabled 14 | . . . 4 . . 10 Max in Single Turn 2 | . . . 2 . . . Machines Repaired . | . . . . . . . Machines Dismantled . | . . . . . . . Machines Sabotaged . | . . . . . . . Overloaded Fab Kills . | . . . . . . . Hacking | -11 -10 -10 -10 -8 -8 -6 --------- Run | Yrd Mat Min Sub Rec Scr Fac Machines Accessed 10 | . 1 . 1 6 2 . Terminals 6 | . 1 . . 5 . . Fabricators . | . . . . . . . Repair Stations . | . . . . . . . Recycling Units 1 | . . . . 1 . . Scanalyzers . | . . . . . . . Garrison Access . | . . . . . . . Total Hacks 18 | . 2 . 3 10 3 . Successful 14 | . 1 . 3 7 3 . Failed 4 | . 1 . . 3 . . Catastrophic . | . . . . . . . Database Lockouts . | . . . . . . . Manual 12 | . 2 . . 10 . . Terminals 10 | . 2 . . 8 . . Fabricators . | . . . . . . . Repair Stations . | . . . . . . . Recycling Units 2 | . . . . 2 . . Scanalyzers . | . . . . . . . Garrison Access . | . . . . . . . Terminal Hacks 8 | . 1 . 3 1 3 . Record 5 | . . . 3 . 2 . Open Door 1 | . . . . . 1 . Unreport Threat 1 | . . . . 1 . . Recall Investigation 1 | . 1 . . . . . Fabricator Hacks . | . . . . . . . Repair Station Hacks . | . . . . . . . Recycling Unit Hacks . | . . . . . . . Scanalyzer . | . . . . . . . Garrison Access Hacks . | . . . . . . . Unauthorized Hacks 6 | . . . . 6 . . Terminals 5 | . . . . 5 . . Botnet 5 | . . . . 5 . . Fabricators . | . . . . . . . Repair Stations . | . . . . . . . Recycling Units 1 | . . . . 1 . . Monitor 1 | . . . . 1 . . Scanalyzers . | . . . . . . . Garrison Access . | . . . . . . . Data Cores Recovered . | . . . . . . . Used . | . . . . . . . Hacking Detections 3 | . 1 . . 2 . . Full Trace Events . | . . . . . . . Feedback Events . | . . . . . . . Feedback Blocked . | . . . . . . . Robot Schematics Acquired . | . . . . . . . Robots Built . | . . . . . . . Authchips . | . . . . . . . Time . | . . . . . . . Total Robot Build Rating . | . . . . . . . Part Schematics Acquired . | . . . . . . . Parts Built . | . . . . . . . Authchips . | . . . . . . . Time . | . . . . . . . Total Part Build Rating . | . . . . . . . Part Studies Acquired . | . . . . . . . Parts Repaired . | . . . . . . . Time . | . . . . . . . Parts Recycled . | . . . . . . . Recycled Matter . | . . . . . . . Retrieved Matter . | . . . . . . . Retrieved Components . | . . . . . . . Parts Scanalyzed . | . . . . . . . Part Schematics Acquired . | . . . . . . . Parts Damaged . | . . . . . . . Bothacking | -11 -10 -10 -10 -8 -8 -6 ------------ Run | Yrd Mat Min Sub Rec Scr Fac Used RIF Installer . | . . . . . . . Robots Hacked . | . . . . . . . Non-combat . | . . . . . . . Combat . | . . . . . . . Robot Hacks Applied . | . . . . . . . Relay Couplers Released . | . . . . . . . Fabnet Peak Effective % . | . . . . . . . Robots Rewired . | . . . . . . . Allies Hacked . | . . . . . . . Hacks Repelled . | . . . . . . . Allies | -11 -10 -10 -10 -8 -8 -6 -------- Run | Yrd Mat Min Sub Rec Scr Fac Total Allies 2 | . . 1 . . 1 . Largest Group 1 | . . 1 . . 1 1 Highest-Rated Group 93 | . . 31 . . 93 93 Highest-Rated Ally 93 | . . 31 . . 93 93 Initial UFD Resources 22 | . . . . . . 22 Total Orders . | . . . . . . . Ally Attacks 21 | . . 11 . . . 10 Total Damage 1807 | . . 212 . . . 1595 Kills 15 | . . 3 . . . 12 Allies Corrupted . | . . . . . . . Allies Melted . | . . . . . . . Intel | -11 -10 -10 -10 -8 -8 -6 ------- Run | Yrd Mat Min Sub Rec Scr Fac Active Infowar (turns) . | . . . . . . . Robot Analysis Total . | . . . . . . . Derelict Logs Recovered 3 | . . 2 1 . . . Drone Launches . | . . . . . . . Drone Recoveries . | . . . . . . . Exploration | -11 -10 -10 -10 -8 -8 -6 ------------- Run | Yrd Mat Min Sub Rec Scr Fac Turns Passed 7408 | 41 661 667 853 598 4156 432 Spaces Moved 5737 | 34 464 521 622 459 3344 293 Core 50 | 12 . . . . . 38 Treads . | . . . . . . . Legs 5687 | 22 464 521 622 459 3344 255 Wheels . | . . . . . . . Hover . | . . . . . . . Flight . | . . . . . . . Fastest Speed 50 | 50 120 120 120 120 120 100 Average Speed 119 | 99 120 120 120 120 120 117 Slowest Speed 120 | 120 120 120 120 120 120 120 Overloaded Moves . | . . . . . . . Propulsion Burnouts . | . . . . . . . Robots Hopped . | . . . . . . . Potential Cave-ins . | . . . . . . . Cave-ins Triggered . | . . . . . . . Exploration Rate (%) 57 | 3 65 99 38 98 92 9 Regions Visited 6 Branch Regions 4 Pre-discovered Areas . | . . . . . . . Known Exits Taken 5 | . 1 1 1 1 1 . Unknown Exits Taken 1 | 1 . . . . . . Scrap Searched 5 | . . 2 . . 3 . Spaces Dug . | . . . . . . . Terrain Destroyed 55 | . . . 55 . . . Melee . | . . . . . . . Projectile . | . . . . . . . AOE 55 | . . . 55 . . . Terrain Rammed . | . . . . . . . Walls Destroyed . | . . . . . . . Machines Disabled . | . . . . . . . Actions | -11 -10 -10 -10 -8 -8 -6 --------- Run | Yrd Mat Min Sub Rec Scr Fac Total 6143 | 38 537 554 674 491 3506 343 Wait 195 | . 42 27 15 22 78 11 Move 5731 | 33 463 520 621 458 3343 293 Hop . | . . . . . . . Pick Up 54 | . 8 1 1 2 37 5 Fast Attach 11 | 5 1 . . 1 3 1 Attach 7 | . . . 2 . . 5 Detach . | . . . . . . . Swap 9 | . 1 . 6 . 2 . Drop 49 | . 4 1 1 . 43 . Fire 58 | . 18 5 28 7 . . Melee 28 | . . . . . . 28 Ram . | . . . . . . . Kick 1 | . . . . 1 . . Crush . | . . . . . . . Escape Stasis . | . . . . . . . Rewire . | . . . . . . . Trap . | . . . . . . . Miscellaneous . | . . . . . . . Route ------- -11/Scrapyard -10/Materials (discovered 3 exits: *Mat x2 / *Min) -10/Mines (discovered 3 exits: *Mat x2 / *Sub) -10/Subcaves (discovered 2 exits: *Mat / *Rec) -8/Recycling (discovered 2 exits: *Fac / *Scr) -8/Scraptown (discovered 2 exits: *Fac x2) -6/Factory History --------- Turn | Location | Event 9 | -11/Scrapyard | Discovered new exit (range 16) 42 | -11/Scrapyard | Entered Materials 62 | -10/Materials | Discovered new exit (range 15) 268 | -10/Materials | Discovered new exit (range 7) 278 | -10/Materials | Identified exit to Materials 301 | -10/Materials | Build established: Mutant 363 | -10/Materials | Discovered exit to Materials (range 16) 702 | -10/Materials | Identified exit to Mines 703 | -10/Materials | Entered Mines 716 | -10/Mines | Received a Mining Laser from a helpful Derelict 765 | -10/Mines | A weapon hastily lodged in a ceiling crevice suddenly fell to the ground 850 | -10/Mines | Learned Materials emergency access door positions 878 | -10/Mines | Discovered exit to Materials (range 10) 1022 | -10/Mines | Learned Materials stockpile data 1155 | -10/Mines | Discovered exit to Materials (range 14) 1360 | -10/Mines | Discovered new exit (range 8) 1368 | -10/Mines | Identified exit to Subcaves 1370 | -10/Mines | Entered Subcaves 1478 | -10/Subcaves | Learned Materials security intel 1567 | -10/Subcaves | Discovered new exit (range 15) 1584 | -10/Subcaves | Identified exit to Recycling 1878 | -10/Subcaves | Visited Clippyterm 1882 | -10/Subcaves | Learned Factory stockpile data 2025 | -10/Subcaves | Discovered new exit (range 4) 2030 | -10/Subcaves | Identified exit to Materials 2050 | -10/Subcaves | A swath of the cavern ceiling suddenly collapsed 2117 | -10/Subcaves | Core integrity fell below 50% 2223 | -10/Subcaves | Entered Recycling 2470 | -8/Recycling | Build established: Scavenger-Mutant 2762 | -8/Recycling | Discovered new exit (range 16) 2787 | -8/Recycling | Scanned before Scraplab entrance 2805 | -8/Recycling | Entered Scraplab 2817 | -8/Recycling | Discovered new exit (range 3) 2818 | -8/Recycling | Identified exit to Scraptown 2821 | -8/Recycling | Entered Scraptown 3051 | -8/Scraptown | Discovered new exit (range 11) 3128 | -8/Scraptown | Visited Spacefarers 3168 | -8/Scraptown | Visited Assassins FH 3186 | -8/Scraptown | Visited Cyclists 3232 | -8/Scraptown | Visited Awakened 3265 | -8/Scraptown | Visited UFD Registry 3265 | -8/Scraptown | Registered with UFD as "Phasemaster" 3280 | -8/Scraptown | Visited SPCMW 3290 | -8/Scraptown | Visited CR-KLE's Repair Center 3291 | -8/Scraptown | Build established: Mutant 3305 | -8/Scraptown | CR-KLE repaired 6 parts 3322 | -8/Scraptown | Visited Symbiants 3404 | -8/Scraptown | Entered Cyclist Reading Room 3629 | -8/Scraptown | Visited Science Guys 3667 | -8/Scraptown | Visited Curators Association 3685 | -8/Scraptown | Visited Botcube Research 3782 | -8/Scraptown | Visited Derelict Rescue Squad 3791 | -8/Scraptown | Found DRS Beacon 3812 | -8/Scraptown | Visited Scrapoid Pod Storage 3833 | -8/Scraptown | Visited Sword Containment 3848 | -8/Scraptown | Visited Junk Repository 3896 | -8/Scraptown | Found Prototype Slashing Weapon 3896 | -8/Scraptown | Identified Companion Sword 3926 | -8/Scraptown | Visited Science Testing Area 3948 | -8/Scraptown | Visited Scrap Suit Storage 3972 | -8/Scraptown | Visited Modified Component R&D 4041 | -8/Scraptown | Found Scrap Suit 4185 | -8/Scraptown | Found Lrg. Botcube 4923 | -8/Scraptown | Found Scrap Suit 5287 | -8/Scraptown | Found Scrapoid Pod 6691 | -8/Scraptown | Lrg. Botcube activated 6727 | -8/Scraptown | Lrg. Botcube completed mutation into treaded form, armed with 4 guns 6878 | -8/Scraptown | Met Optimus 6878 | -8/Scraptown | Accepted into 0bPrime 6952 | -8/Scraptown | Found Scrap Suit 6970 | -8/Scraptown | Discovered new exit (range 3) 6971 | -8/Scraptown | Identified exit to Factory 6977 | -8/Scraptown | Entered Factory 6977 | -6/Factory | Accompanied by 1 ally 6977 | -6/Factory | Evolved 8 slots: Power x1, Propulsion x2, Utility x5 7135 | -6/Factory | Spotted B-75 Beast 7156 | -6/Factory | Allies destroyed Large Mutated Botcube 7164 | -6/Factory | Found Lrg. Botcube 7336 | -6/Factory | Core integrity fell below 50% 7353 | -6/Factory | Core integrity fell below 20% 7354 | -6/Factory | Lost 5 parts (1n4u) 7398 | -6/Factory | Garrison activated, responded to threat 7409 | -6/Factory | Destroyed by P-70 Sage with High-powered Shock Rifle Last Messages --------------- C-17 Slicer system terminally corrupted. Knocked back. Imp. Hacking Suite severed. Sneak attack on T-07 Excavator. Destroyed Mining Laser. Destroyed Imp. Terrain Scanner. Knocked back. Companion Sword: "This will sting, but I promise it'll sting them more!" C-17 Slicer destroyed. Acquired 10 matter. Acquired Chainsword. Acquired Arm. Leg. C-17 Slicer destroyed. Acquired 10 matter. ALERT: Security rotation in progress. P-70 Sage Antigrav System severed. P-70 Sage calls for garrison reinforcements. ALERT: Activating Garrison Access F002. Subcomponent Replicator disabled. Map ----- +----------------------------------------------------+ | | | | | | | | | | | | | | | | | | | | | | | | | | | | | | | ???????????????????????????????? | | ???????????????????????????????? | | ?????????????????#?#??#??!?????? | | ????????????????? #????????? | | ??#####?????##### #????????? | | ### ####### " +????????? | | " #? ?????????????? | | ### ## ## ?????????????? | | ??## ### ##Y########???? | | ???# #?# p]#???? | | ???# #?# # """ "" @ #???? | | ???# #?# ## =""" """% #???? | | ???# #?# ## %""" """! #???? | | ?### ##### T# ## "" "" #???? | | ?# %#?#### ##/ "" "" #???? | | ## #????# ## #???? | | =% #????#+##############???? | | %# #???? ????????????????? | | ##% #???? ! ????????????????? | | ?#######???? ????????????????? | | ???????????? ????????????????? | | ?????????????""????????????????? | | ???????????????????????????????? | | ???????????????????????????????? | | ???????????????????????????????? | | ???????????????????????????????? | | ???????????????????????????????? | | ???????????????????????????????? | | ???????????????????????????????? | | ???????????????????????????????? | | ???????????????????????????????? | | ???????????????????????????????? | | ???????????????????????????????? | | ???????????????????????????????? | | ???????????????????????????????? | +----------------------------------------------------+ Best States ------------- Heat Dissipation 37 Energy Generation 14 Energy Capacity 265 Matter Stores 300 Matter Capacity 300 Sight Range 16 Terrain Scan Density 10 Armor Coverage 150 Evasion (%) 55 Melee Accuracy 11 Offensive Hacking 12 Item Schematics ----------------- None Robot Schematics ------------------ None Fabricated ------------ Nothing Repaired ---------- Nothing Studied --------- None Alien Tech Used ----------------- None Achievements -------------- None Challenges ------------ None Game ------ Seed StormHypertargetingArchive Manual? 0 Play Time 00:40:23 Cumulative 47.0 hours Start 2026.07.09 @ 16:55:20 End 2026.07.09 @ 17:35:57 Sessions 1 Manual Loads 0 Difficulty Rogue Special Mode None Game No. 52 Rogue 52 Adventurer 0 Explorer 0 Win Type - Total 0 Types 0/0/0/0/0/0/0/0/0/0 Lore% 53 Gallery% 35 Achievement% 31 Wizard Run 0 Options --------- Layout 1 ASCII 0 Keyboard 0 Movement Mouse Keybinds 0 Fullscreen 1 Font 24/X11 Map View 50x35 Zoom Use 0% Tactical HUD 0 Map Filters NONE Filters NONE Steam 1 RUN: 67b4b5e1-1737-4587-93c4-08b477c7b5f4